bitfinex-derivatives/quotes_SOLF0:USTF0_20220104
["timestamp","ask_amount","ask_price","bid_price","bid_amount"]
[1641313007619,4.09128058,171.7,171.69,27.66479]
[1641313008521,12.33764282,171.74,171.69,27.66479]
[1641313008722,12.33764282,171.7,171.69,27.66479]
[1641313010524,12.33764282,171.71,171.69,30.66479]
[1641313010723,12.33764282,171.71,171.7,4.0]
[1641313011222,12.33764282,171.74,171.7,9.41018905]
[1641313011823,12.33764282,171.74,171.73,4.0]
[1641313012423,12.33764282,171.75,171.71,5.41018905]
[1641313012624,5.471,171.74,171.71,5.41018905]
[1641313014025,5.471,171.74,171.71,4.09128058]
[1641313014225,2.79289878,171.73,171.7,4.0]
[1641313014826,32.85894476,171.74,171.7,4.0]
[1641313015827,32.85894476,171.74,171.66,4.09128058]
[1641313016027,35.85894476,171.74,171.66,4.09128058]
[1641313016227,32.85894476,171.74,171.66,4.09128058]
[1641313016632,32.85894476,171.74,171.64,4.0]
[1641313016633,12.33828617,171.69,171.65,5.40998901]
[1641313018034,12.33828617,171.7,171.66,4.09128058]
[1641313018431,12.33828617,171.7,171.66,8.058e-05]
[1641313018633,15.33828617,171.7,171.62,12.05010539]
[1641313019132,3.0,171.66,171.62,12.05010539]
[1641313019334,3.0,171.66,171.59,12.05010539]
[1641313019534,27.66479,171.64,171.59,12.05010539]
[1641313020034,33.76479,171.64,171.55,133.90905015]
[1641313020433,12.33828617,171.63,171.55,133.90905015]
[1641313020637,12.33828617,171.63,171.55,101.05010539]
[1641313021636,12.33828617,171.62,171.55,89.0]
[1641313021834,12.33828617,171.62,171.56,4.0]
[1641313022034,12.33828617,171.62,171.56,10.719]
[1641313022436,12.33828617,171.63,171.56,10.719]
[1641313023036,27.66479,171.64,171.56,10.719]
[1641313023237,27.66479,171.64,171.59,4.0]
[1641313024036,27.66479,171.64,171.56,34.38379]
[1641313024236,3.0,171.61,171.56,6.719]
[1641313024437,30.66479,171.64,171.56,6.719]
[1641313024641,3.0,171.68,171.56,6.719]
[1641313024837,129.0786,171.7,171.59,4.0]
[1641313025040,12.33828617,171.71,171.62,4.0]
[1641313025239,12.33828617,171.71,171.64,4.0]
[1641313025438,12.33828617,171.71,171.62,4.211]
[1641313025638,12.33828617,171.71,171.65,27.66479]
[1641313025840,12.33828617,171.71,171.63,27.66479]
[1641313026039,12.33828617,171.71,171.64,4.0]
[1641313026439,40.00307617,171.75,171.64,4.0]
[1641313027038,40.00307617,171.75,171.63,27.66479]
[1641313027238,60.9982,171.74,171.63,27.66479]
[1641313027638,3.0,171.74,171.63,27.66479]
[1641313028040,27.66479,171.75,171.63,27.66479]
[1641313028342,27.66479,171.75,171.63,33.89479]
[1641313028541,27.66479,171.75,171.64,4.0]
[1641313028741,3.0,171.7,171.63,6.23]
[1641313029143,64.2256,171.74,171.63,6.23]
[1641313029544,3.0,171.69,171.63,6.23]
[1641313029744,27.66479,171.71,171.58,31.66479]
[1641313030647,3.0,171.68,171.58,31.66479]
[1641313031045,27.66479,171.71,171.58,31.66479]
[1641313031246,3.0,171.7,171.58,31.66479]
[1641313031647,27.66479,171.68,171.58,31.66479]
[1641313032747,12.33828617,171.66,171.58,39.71489539]
[1641313033450,15.33828617,171.66,171.58,39.71489539]
[1641313033649,27.66479,171.65,171.58,12.05010539]
[1641313033851,12.33828617,171.64,171.56,12.05010539]
[1641313034450,3.0,171.6,171.56,12.05010539]
[1641313034650,19.57828617,171.62,171.55,89.0]
[1641313034851,3.0,171.61,171.55,89.0]
[1641313035051,3.0,171.61,171.54,12.05010539]
[1641313035252,16.57828617,171.62,171.54,12.05010539]
[1641313035452,3.0,171.61,171.54,12.05010539]
[1641313035653,27.66479,171.58,171.5,44.90905015]
[1641313035852,40.00307617,171.58,171.5,12.05010539]
[1641313036454,43.00307617,171.58,171.5,18.17917616]
[1641313036656,3.0,171.57,171.5,18.17917616]
[1641313036953,5.803,171.57,171.5,18.17917616]
[1641313037155,8.803,171.57,171.5,18.17917616]
[1641313037354,3.0,171.56,171.5,18.17917616]
[1641313037754,27.66479,171.54,171.47,18.17917616]
[1641313040655,27.66479,171.54,171.48,12.05010539]
[1641313041356,27.66479,171.54,171.48,4.55]
[1641313042657,27.66479,171.54,171.48,16.60010539]
[1641313043662,12.33828617,171.56,171.52,27.66479]
[1641313043860,12.33828617,171.56,171.52,33.72279]
[1641313044263,12.33828617,171.56,171.52,6.058]
[1641313044863,12.33828617,171.59,171.52,6.058]
[1641313045665,12.33828617,171.59,171.52,10.058]
[1641313046365,40.00307617,171.61,171.53,12.05010539]
[1641313046564,12.33828617,171.61,171.53,12.05010539]
[1641313047666,3.0,171.6,171.53,12.05010539]
[1641313047866,12.33828617,171.61,171.53,12.05010539]
[1641313048867,12.33828617,171.61,171.55,4.0]
[1641313049069,12.33828617,171.62,171.55,4.0]
[1641313050475,32.85894476,171.66,171.58,4.0]
[1641313050671,32.85894476,171.66,171.58,8.226]
[1641313051471,32.85894476,171.66,171.59,4.0]
[1641313051672,3.0,171.66,171.56,36.85894476]
[1641313051875,27.66479,171.62,171.56,121.85894476]
[1641313052071,33.33379,171.62,171.56,32.85894476]
[1641313052671,5.669,171.62,171.53,4.0]
[1641313053071,61.5499,171.64,171.56,4.0]
[1641313053272,27.66479,171.65,171.56,4.0]
[1641313054573,27.66479,171.65,171.56,10.42477863]
[1641313058786,27.66479,171.65,171.56,16.78677863]
[1641313059586,2.73338858,171.64,171.59,4.0]
[1641313060388,2.73338858,171.66,171.6,1.38072995]
[1641313060587,2.73338858,171.66,171.6,7.77672995]
[1641313061694,2.73338858,171.66,171.61,1.38072995]
[1641313062291,12.76635364,171.66,171.57,7.80546296]
[1641313063592,12.76635364,171.66,171.59,4.0]
[1641313064292,12.76635364,171.66,171.6,1.38072995]
[1641313064293,2.73338858,171.66,171.6,1.38072995]
[1641313064492,2.73338858,171.66,171.6,5.91572995]
[1641313065192,2.73338858,171.66,171.61,1.38072995]
[1641313065893,2.73338858,171.66,171.59,4.0]
[1641313065894,12.76585479,171.66,171.6,1.38072995]
[1641313067497,2.73338858,171.66,171.6,1.38072995]
[1641313068095,2.73338858,171.66,171.6,29.04551995]
[1641313069198,2.73338858,171.66,171.61,1.38072995]
[1641313069397,2.73338858,171.66,171.61,5.48972995]
[1641313069599,2.73338858,171.66,171.63,7.0]
[1641313069796,60.52373476,171.71,171.63,4.0]
[1641313069797,12.76446666,171.7,171.63,4.0]
[1641313070601,12.76446666,171.7,171.64,1.38072995]
[1641313071404,12.76446666,171.7,171.61,4.109]
[1641313071405,12.76446666,171.7,171.62,1.38072995]
[1641313075004,12.76446666,171.7,171.63,4.0]
[1641313075906,12.76446666,171.7,171.64,1.38072995]
[1641313079307,4.11009465,171.66,171.65,4.11009465]
[1641313079508,4.11009465,171.66,171.65,8.62209465]
[1641313080108,4.11009465,171.66,171.65,10.0028246]
[1641313080510,4.11009465,171.66,171.65,5.4908246]
[1641313080911,2.73338858,171.7,171.65,4.11009465]
[1641313081209,2.73338858,171.7,171.63,4.11009465]
[1641313081210,12.33155312,171.68,171.63,4.11009465]
[1641313082214,12.33155312,171.65,171.61,5.49079674]
[1641313082811,4.114249,171.62,171.61,5.49079674]
[1641313083910,4.114249,171.62,171.61,1.38070209]
[1641313085113,4.114249,171.63,171.61,1.38070209]
[1641313085616,4.114249,171.63,171.61,7.68470209]
[1641313086618,15.0649417,171.67,171.61,6.304]
[1641313087321,15.0649417,171.67,171.63,4.11385612]
[1641313087717,15.0649417,171.67,171.63,8.11385612]
[1641313087919,15.0649417,171.67,171.63,4.0]
[1641313089223,12.33155312,171.69,171.65,4.11336732]
[1641313089721,12.76226583,171.7,171.64,1.38088019]
[1641313089923,12.34099725,171.68,171.64,4.11366575]
[1641313090223,40.00578725,171.68,171.64,4.11366575]
[1641313090922,40.00578725,171.68,171.6,12.33155312]
[1641313091124,12.34099725,171.66,171.62,4.1140104]
[1641313092022,12.76226583,171.67,171.61,4.11423763]
[1641313092424,12.76226583,171.67,171.61,10.84623763]
[1641313093025,12.76226583,171.67,171.61,6.732]
[1641313093225,12.34255411,171.66,171.62,4.1141847]
[1641313093825,12.34255411,171.66,171.59,4.0]
[1641313094026,12.34255411,171.66,171.61,4.11426537]
[1641313094726,15.07594269,171.66,171.6,6.56470177]
[1641313095228,12.34255411,171.65,171.61,4.11430523]
[1641313096727,12.76589239,171.66,171.59,4.0]
[1641313096927,12.76589239,171.66,171.63,4.0]
[1641313097128,12.76589239,171.66,171.63,8.954]
[1641313097329,2.73338858,171.66,171.64,5.49454214]
[1641313097930,2.07512251,171.66,171.65,3.0]
[1641313098129,0.59512251,171.66,171.65,3.0]
[1641313098330,0.59512251,171.66,171.65,58.32958]
[1641313098729,12.34120683,171.68,171.65,58.32958]
[1641313098929,12.34120683,171.68,171.67,7.0]
[1641313099128,12.34120683,171.68,171.67,13.393]
[1641313099730,3.20120683,171.68,171.67,13.393]
[1641313099929,3.20120683,171.68,171.67,10.393]
[1641313100331,10.029822,171.7,171.67,10.393]
[1641313100530,32.85894476,171.72,171.67,10.393]
[1641313100730,42.88876676,171.77,171.67,6.393]
[1641313100930,42.88876676,171.77,171.67,3.81341069]
[1641313101231,60.52373476,171.78,171.7,4.11182553]
[1641313101430,63.52373476,171.78,171.7,4.11182553]
[1641313102331,30.66479,171.75,171.7,4.11182553]
[1641313102734,30.66479,171.75,171.69,4.11182553]
[1641313102933,3.0,171.74,171.69,4.11182553]
[1641313103232,30.66479,171.75,171.65,55.32958]
[1641313103433,3.0,171.74,171.65,55.32958]
[1641313103635,3.0,171.71,171.65,55.32958]
[1641313103834,9.325,171.71,171.65,55.32958]
[1641313104336,3.0,171.7,171.65,55.32958]
[1641313104534,9.325,171.71,171.65,55.32958]
[1641313104734,3.0,171.71,171.65,55.32958]
[1641313105135,32.85894476,171.72,171.58,11.913]
[1641313105537,35.85894476,171.72,171.58,8.913]
[1641313105737,35.85894476,171.72,171.58,15.78000512]
[1641313105937,9.63255222,171.73,171.58,15.78000512]
[1641313105938,3.0,171.68,171.58,11.78000512]
[1641313106138,3.0,171.7,171.58,11.78000512]
[1641313106337,27.66479,171.7,171.58,6.86700512]
[1641313106544,30.66479,171.7,171.58,6.86700512]
[1641313106742,30.66479,171.7,171.58,5.247]
[1641313107241,12.63255222,171.69,171.58,5.247]
[1641313107642,63.6404,171.68,171.58,5.247]
[1641313107843,63.6404,171.68,171.57,6.86700512]
[1641313108041,63.6404,171.68,171.6,4.0]
[1641313108241,63.6404,171.68,171.57,10.86700512]
[1641313109843,63.6404,171.68,171.57,13.86700512]
[1641313110044,27.66479,171.7,171.6,4.0]
[1641313110244,27.66479,171.7,171.6,9.154]
[1641313110446,27.66479,171.7,171.6,5.154]
[1641313110648,27.66479,171.7,171.6,9.154]
[1641313110845,30.66479,171.7,171.6,5.154]
[1641313111047,27.66479,171.7,171.6,5.154]
[1641313111646,27.66479,171.7,171.6,16.02100512]
[1641313112251,27.66479,171.7,171.6,12.02100512]
[1641313112651,27.66479,171.7,171.6,6.86700512]
[1641313113254,30.66479,171.7,171.6,6.86700512]
[1641313113753,27.66479,171.7,171.6,6.86700512]
[1641313114652,9.68463367,171.69,171.6,15.79900512]
[1641313114854,9.68463367,171.69,171.6,11.79900512]
[1641313115253,27.66479,171.7,171.6,11.79900512]
[1641313115557,27.66479,171.7,171.6,15.79900512]
[1641313116354,61.307,171.71,171.63,4.0]
[1641313116555,61.307,171.71,171.64,27.66479]
[1641313116755,61.307,171.71,171.64,5.623]
[1641313117958,61.307,171.71,171.63,4.0]
[1641313118458,61.307,171.71,171.63,31.66479]
[1641313118657,64.307,171.71,171.6,50.32607571]
[1641313118858,3.0,171.7,171.6,32.85894476]
[1641313119058,61.307,171.71,171.6,32.85894476]
[1641313119258,64.307,171.71,171.6,32.85894476]
[1641313119558,3.0,171.7,171.6,32.85894476]
[1641313119759,3.0,171.7,171.6,6.76838468]
[1641313119960,64.307,171.71,171.6,6.76838468]
[1641313120158,64.307,171.71,171.6,11.52838468]
[1641313120159,61.307,171.71,171.6,11.52838468]
[1641313120560,9.6844771,171.7,171.6,4.76]
[1641313121462,9.6844771,171.7,171.59,38.43317468]
[1641313121762,9.6844771,171.7,171.6,6.76838468]
[1641313122662,9.6844771,171.7,171.62,4.0]
[1641313123163,9.6844771,171.7,171.6,12.45338468]
[1641313123365,61.307,171.71,171.6,12.45338468]
[1641313124167,61.307,171.71,171.62,4.0]
[1641313124567,61.307,171.71,171.62,31.66479]
[1641313125968,61.307,171.71,171.63,6.76838468]
[1641313126368,63.52373476,171.75,171.63,6.76838468]
[1641313126570,63.867,171.74,171.63,6.76838468]
[1641313126868,63.867,171.74,171.65,4.0]
[1641313127069,63.867,171.74,171.65,5.133]
[1641313127771,9.68163505,171.73,171.65,5.133]
[1641313128573,9.68163505,171.73,171.63,6.76838468]
[1641313129173,14.80263505,171.73,171.63,6.76838468]
[1641313129373,17.80263505,171.73,171.63,6.76838468]
[1641313129774,14.80263505,171.73,171.63,6.76838468]
[1641313129974,14.80263505,171.73,171.63,19.106414]
[1641313129975,12.33802932,171.71,171.63,19.106414]
[1641313130174,15.33802932,171.71,171.63,19.106414]
[1641313130575,27.66479,171.7,171.63,19.106414]
[1641313130977,40.00281932,171.7,171.62,12.33802932]
[1641313131880,40.00281932,171.7,171.61,12.33802932]
[1641313131881,12.33802932,171.69,171.61,12.33802932]
[1641313132482,3.0,171.68,171.61,12.33802932]
[1641313133379,12.33802932,171.69,171.61,12.33802932]
[1641313133579,12.33802932,171.68,171.6,12.33802932]
[1641313135984,3.0,171.66,171.6,2.932e-05]
[1641313136181,3.0,171.66,171.59,6.76841508]
[1641313136182,62.3976,171.67,171.56,32.85894476]
[1641313136386,3.0,171.6,171.56,32.85894476]
[1641313136582,27.66479,171.57,171.56,32.85894476]
[1641313136984,27.66479,171.57,171.5,89.0]
[1641313137886,3.0,171.64,171.5,89.0]
[1641313138087,35.85894476,171.65,171.5,95.676]
[1641313138289,32.85894476,171.62,171.5,95.676]
[1641313138687,60.52373476,171.62,171.51,27.66479]
[1641313138889,27.66479,171.62,171.52,4.0]
[1641313139087,65.2461,171.61,171.52,4.0]
[1641313139288,27.66479,171.62,171.52,4.0]
[1641313139490,27.66479,171.62,171.51,29.02963264]
[1641313139688,62.7887,171.61,171.51,29.02963264]
[1641313140088,62.7887,171.61,171.53,1.36484264]
[1641313140289,2.7498214,171.6,171.53,8.01684264]
[1641313141093,2.7498214,171.61,171.54,1.36484264]
[1641313141692,2.7498214,171.61,171.55,4.0]
[1641313141993,2.7498214,171.63,171.55,4.0]
[1641313142592,2.7498214,171.63,171.56,1.36484264]
[1641313143497,2.7498214,171.63,171.59,4.0]
[1641313143697,2.7498214,171.63,171.59,6.71]
[1641313144098,2.7498214,171.63,171.6,1.36484264]
[1641313144897,60.1756,171.64,171.59,6.71]
[1641313145096,60.1756,171.64,171.55,31.66479]
[1641313146298,60.1756,171.64,171.56,1.33220637]
[1641313147699,2.74852518,171.63,171.59,4.0]
[1641313147900,2.74852518,171.63,171.59,5.879]
[1641313148399,2.74852518,171.66,171.6,1.33220637]
[1641313148800,2.74852518,171.66,171.6,28.99699637]
[1641313149202,2.74852518,171.69,171.6,28.99699637]
[1641313150103,2.74852518,171.69,171.61,1.33220637]
[1641313150706,2.74852518,171.69,171.61,6.99120637]
[1641313151208,3.0,171.67,171.61,1.33220637]
[1641313151412,4.903,171.67,171.55,32.85894476]
[1641313151609,3.0,171.66,171.62,1.36511898]
[1641313151810,3.0,171.66,171.55,32.85894476]
[1641313152006,3.0,171.65,171.55,32.85894476]
[1641313152206,3.0,171.64,171.55,32.85894476]
[1641313152407,3.0,171.63,171.55,32.85894476]
[1641313152606,3.0,171.63,171.51,4.0]
[1641313152806,27.66479,171.63,171.55,4.0]
[1641313153007,27.66479,171.63,171.55,6.41]
[1641313154109,27.66479,171.63,171.52,62.7223]
[1641313154310,27.66479,171.63,171.54,4.0]
[1641313155608,30.66479,171.63,171.52,62.7223]
[1641313155808,62.0203,171.62,171.52,62.7223]
[1641313157411,62.0203,171.62,171.56,4.0]
[1641313157612,62.0203,171.62,171.56,9.379]
[1641313157816,62.0203,171.62,171.56,5.379]
[1641313159014,62.0203,171.62,171.53,10.29388285]
[1641313159815,62.0203,171.62,171.53,4.0]
[1641313160619,62.0203,171.62,171.56,4.0]
[1641313161018,27.66479,171.64,171.56,4.0]
[1641313161218,27.66479,171.64,171.53,8.525]
[1641313161427,150.97129,171.67,171.53,8.525]
[1641313161619,150.97129,171.67,171.54,4.0]
[1641313162620,150.97129,171.67,171.55,3.0]
[1641313162820,150.97129,171.67,171.55,30.66479]
[1641313163921,150.97129,171.67,171.55,27.66479]
[1641313164122,4.09809487,171.64,171.58,4.09809487]
[1641313166227,4.09809487,171.65,171.6,4.09809487]
[1641313167626,4.09809487,171.66,171.6,4.09809487]
[1641313169230,4.09809487,171.65,171.59,31.76288487]
[1641313169932,4.09809487,171.66,171.6,4.09809487]
[1641313174537,4.09809487,171.66,171.61,4.09809487]
[1641313175235,4.09809487,171.66,171.61,9.81509487]
[1641313175435,4.09809487,171.64,171.61,5.717]
[1641313176937,64.0894,171.67,171.61,5.717]
[1641313178040,64.0894,171.67,171.59,27.66479]
[1641313178238,64.0894,171.67,171.56,12.29327945]
[1641313179141,31.76288487,171.65,171.55,36.28479]
[1641313182149,4.09809487,171.64,171.55,36.28479]
[1641313182853,4.09809487,171.6,171.56,18.70712532]
[1641313183853,4.09809487,171.59,171.55,48.57806945]
[1641313184654,4.09809487,171.6,171.56,18.70713753]
[1641313185557,4.09809487,171.59,171.55,48.57806945]
[1641313190467,4.09809487,171.6,171.56,18.70712505]
[1641313191366,4.09809487,171.6,171.56,46.37191505]
[1641313191767,4.09809487,171.6,171.56,39.95806945]
[1641313192268,4.09809487,171.6,171.56,12.29327945]
[1641313192670,4.09809487,171.6,171.57,1.37666621]
[1641313192869,4.09809487,171.6,171.52,32.85894476]
[1641313193069,10.15809487,171.6,171.52,32.85894476]
[1641313193271,6.06,171.6,171.52,32.85894476]
[1641313193472,27.66479,171.57,171.56,4.1149984]
[1641313194472,27.66479,171.57,171.55,4.1149984]
[1641313195068,60.3914,171.62,171.55,4.1149984]
[1641313195271,60.3914,171.62,171.55,10.6099984]
[1641313195470,60.3914,171.62,171.56,4.1149984]
[1641313196071,10.33513769,171.61,171.56,4.1149984]
[1641313196874,60.3914,171.62,171.57,4.1149984]
[1641313198374,60.3914,171.62,171.56,4.1149984]
[1641313198973,60.3914,171.62,171.55,5.57]
[1641313198974,60.3914,171.62,171.57,4.1149984]
[1641313199776,60.3914,171.62,171.59,4.1149984]
[1641313199978,27.66479,171.63,171.59,4.1149984]
[1641313202278,27.66479,171.63,171.58,4.1149984]
[1641313202678,10.3341875,171.62,171.57,4.1149984]
[1641313203878,27.66479,171.63,171.58,4.1149984]
[1641313204581,10.33409537,171.62,171.57,4.1149984]
[1641313207184,10.33409537,171.62,171.58,4.0]
[1641313207384,63.9818,171.65,171.58,4.1149984]
[1641313208584,63.9818,171.65,171.6,4.1149984]
[1641313208784,63.9818,171.65,171.6,10.5109984]
[1641313210887,63.9818,171.65,171.6,4.1149984]
[1641313211689,10.33275057,171.64,171.59,4.1149984]
[1641313211889,18.11975057,171.64,171.59,4.1149984]
[1641313212088,15.11975057,171.64,171.59,4.1149984]
[1641313212494,47.97869533,171.64,171.56,4.1149984]
[1641313212888,50.97869533,171.64,171.56,4.1149984]
[1641313213093,47.97869533,171.64,171.56,4.1149984]
[1641313213591,75.64348533,171.64,171.56,4.1149984]
[1641313213891,78.64348533,171.64,171.56,4.1149984]
[1641313214292,10.33275057,171.63,171.56,4.1149984]
[1641313215091,10.33275057,171.63,171.57,4.1149984]
[1641313217497,10.33275057,171.63,171.58,4.1149984]
[1641313218395,10.33275057,171.63,171.57,4.1149984]
[1641313222398,10.33275057,171.63,171.55,4.0]
[1641313223099,12.34225636,171.61,171.57,4.11408545]
[1641313224098,12.34225636,171.61,171.55,4.0]
[1641313224499,10.33275057,171.63,171.55,4.0]
[1641313225203,12.34239091,171.61,171.57,4.1141303]
[1641313225802,12.34239091,171.61,171.55,4.0]
[1641313226602,12.34239091,171.61,171.57,4.1141404]
[1641313227006,12.34239091,171.61,171.55,8.989]
[1641313227206,12.34239091,171.61,171.55,11.989]
[1641313227403,12.34239091,171.61,171.55,8.989]
[1641313227804,12.34239091,171.61,171.55,7.0]
[1641313228205,10.33275057,171.63,171.57,4.1140324]
[1641313228705,12.3421129,171.61,171.55,7.0]
[1641313229307,12.3421129,171.61,171.55,4.0]
[1641313229507,10.33275057,171.63,171.57,4.11402771]
[1641313230508,4.11402427,171.58,171.55,4.0]
[1641313230909,10.33275057,171.63,171.57,4.11402335]
[1641313231611,4.11402576,171.58,171.55,7.0]
[1641313232212,10.33275057,171.63,171.57,4.1140324]
[1641313232816,10.33275057,171.63,171.55,7.0]
[1641313233014,4.11401705,171.58,171.55,7.0]
[1641313233516,12.34205116,171.62,171.56,1.26791888]
[1641313233714,12.34205116,171.62,171.58,4.0]
[1641313233920,12.34205116,171.62,171.61,27.66479]
[1641313234714,4.11318271,171.62,171.61,27.66479]
[1641313235615,15.18814082,171.66,171.61,27.66479]
[1641313235815,12.34205116,171.66,171.61,28.93291679]
[1641313236015,12.34205116,171.66,171.62,4.0]
[1641313236215,12.34205116,171.66,171.62,10.62]
[1641313236617,12.34205116,171.66,171.64,4.11251623]
[1641313236819,12.34205116,171.68,171.64,4.11251623]
[1641313237419,12.34205116,171.68,171.63,1.26821706]
[1641313238220,12.34205116,171.68,171.64,4.11252601]
[1641313238920,12.34205116,171.68,171.63,1.26823697]
[1641313239320,15.34205116,171.68,171.63,1.26823697]
[1641313239519,3.0,171.68,171.64,4.11253857]
[1641313240020,40.83910488,171.69,171.64,4.11253857]
[1641313240922,12.33940913,171.65,171.61,66.7122297]
[1641313241120,12.33940913,171.65,171.61,5.3812297]
[1641313241522,13.17431488,171.68,171.6,27.66479]
[1641313241720,13.17431488,171.68,171.6,32.96379]
[1641313242121,13.17431488,171.68,171.63,27.66479]
[1641313242322,12.3379456,171.67,171.63,31.77743853]
[1641313243022,12.33868348,171.66,171.63,27.66479]
[1641313243523,13.17431488,171.69,171.63,27.66479]
[1641313243722,12.33839101,171.67,171.63,4.112797]
[1641313244522,12.33839101,171.67,171.61,1.26815808]
[1641313245524,12.33839101,171.67,171.6,27.66479]
[1641313245726,12.33839101,171.67,171.63,4.11270661]
[1641313246124,13.17431488,171.69,171.61,1.26819245]
[1641313246724,12.33792862,171.67,171.63,4.11264287]
[1641313247929,13.17431488,171.69,171.61,27.66479]
[1641313248126,13.17431488,171.69,171.62,1.26817175]
[1641313248630,2.84608966,171.69,171.61,32.63179]
[1641313249528,2.84608966,171.69,171.6,8.5]
[1641313251833,4.08759193,171.68,171.6,11.5]
[1641313252832,4.08759193,171.68,171.6,15.5876323]
[1641313253033,4.08759193,171.68,171.62,27.66479]
[1641313253234,4.08759193,171.68,171.62,34.16279]
[1641313253436,4.08759193,171.68,171.62,6.498]
[1641313254035,4.08759193,171.67,171.62,6.498]
[1641313255036,4.08759193,171.68,171.62,6.498]
[1641313255836,12.26289691,171.68,171.64,4.0876323]
[1641313259840,12.26289691,171.68,171.65,4.0]
[1641313260242,2.78243747,171.69,171.67,4.0876323]
[1641313260441,2.78243747,171.69,171.67,10.2436323]
[1641313260941,15.04533438,171.71,171.67,10.2436323]
[1641313264048,12.26289691,171.71,171.67,10.2436323]
[1641313264746,12.26289691,171.71,171.69,4.0]
[1641313266650,15.04533438,171.72,171.69,4.0]
[1641313267051,15.04533438,171.72,171.68,4.0876323]
[1641313267249,27.66479,171.71,171.68,4.0876323]
[1641313268150,15.04533438,171.7,171.66,4.0876323]
[1641313269350,12.26289691,171.7,171.66,4.0876323]
[1641313270452,18.09689691,171.7,171.66,4.0876323]
[1641313270652,3.0,171.69,171.62,12.34225636]
[1641313270853,62.1934,171.69,171.62,12.34225636]
[1641313271052,3.0,171.65,171.62,12.34225636]
[1641313271255,37.44979,171.65,171.62,12.34225636]
[1641313271451,34.44979,171.65,171.62,12.34225636]
[1641313272052,6.785,171.65,171.62,12.34225636]
[1641313272252,3.0,171.67,171.62,12.34225636]
[1641313272452,12.26289691,171.65,171.57,16.80625636]
[1641313273354,39.92768691,171.65,171.58,4.0]
[1641313274157,12.26289691,171.66,171.58,4.0]
[1641313274356,12.26289691,171.66,171.58,10.332]
[1641313274957,12.26289691,171.67,171.58,10.332]
[1641313275160,12.26289691,171.67,171.58,13.332]
[1641313275358,12.26289691,171.67,171.58,10.332]
[1641313276058,12.26289691,171.67,171.61,4.0]
[1641313276261,12.26289691,171.66,171.61,4.0]
[1641313277261,12.26289691,171.66,171.58,4.0]
[1641313278459,12.26289691,171.65,171.58,4.0]
[1641313279263,12.26289691,171.65,171.63,4.0]
[1641313279464,12.26289691,171.65,171.63,6.039]
[1641313279863,12.26289691,171.68,171.63,6.039]
[1641313280665,12.26289691,171.67,171.6,27.66479]
[1641313281565,17.44089691,171.67,171.59,4.0]
[1641313282566,12.26289691,171.67,171.59,4.0]
[1641313283167,12.26289691,171.65,171.59,4.0]
[1641313283968,12.26289691,171.66,171.59,4.0]
[1641313284268,12.26289691,171.66,171.58,3.0]
[1641313284269,12.26289691,171.66,171.62,4.0]
[1641313284671,12.26289691,171.67,171.62,4.0]
[1641313285976,12.26289691,171.67,171.6,27.66479]
[1641313286774,12.26289691,171.66,171.6,27.66479]
[1641313287975,16.72389691,171.66,171.6,27.66479]
[1641313288377,19.72389691,171.66,171.6,27.66479]
[1641313288978,12.26289691,171.63,171.6,27.66479]
[1641313289678,12.26289691,171.63,171.57,27.66479]
[1641313290079,12.26289691,171.62,171.57,27.66479]
[1641313290878,12.26289691,171.61,171.57,27.66479]
[1641313292783,12.26289691,171.63,171.57,27.66479]
[1641313293285,12.26289691,171.62,171.57,27.66479]
[1641313295088,12.26289691,171.63,171.57,27.66479]
[1641313295288,12.26289691,171.63,171.57,31.76579]
[1641313296989,12.26289691,171.63,171.57,27.66479]
[1641313297990,12.26289691,171.62,171.57,27.66479]
[1641313298890,12.26289691,171.6,171.57,27.66479]
[1641313299592,72.82839691,171.64,171.57,27.66479]
[1641313300092,72.82839691,171.64,171.55,12.78]
[1641313300292,78.80239691,171.64,171.55,12.78]
[1641313300691,81.80239691,171.64,171.55,12.78]
[1641313300892,78.80239691,171.64,171.55,12.78]
[1641313301092,12.26289691,171.63,171.55,12.78]
[1641313301792,27.66479,171.61,171.55,12.78]